[Event "January 9 Late 2024"]
[Site "https://www.chess.com"]
[Date "2024.01.09"]
[Round "3"]
[White "Grochal, Joey"]
[Black "Wadsworth, Matthew J"]
[Result "1-0"]
[Board "106"]
[TimeControl "180+1"]
[WhiteFideId "1019945"]
[BlackFideId "415804"]
[WhiteElo "2476"]
[BlackElo "2653"]
[WhiteTeam "NED"]
[BlackTeam "ENG"]
[WhiteClock "0:00:17"]
[BlackClock "0:00:00"]

1. e4 {[%clk 0:03:00]}  e6 {[%clk 0:02:57]} 2. d4 {[%clk 0:03:00]}  d5 {[%clk 0:02:57]} 3. Nc3 {[%clk 0:03:01]}  Bb4 {[%clk 0:02:57]} 4. e5 {[%clk 0:03:01]}  c5 {[%clk 0:02:56]} 5. a3 {[%clk 0:03:02]}  Bxc3+ {[%clk 0:02:57]} 6. bxc3 {[%clk 0:03:03]}  Qa5 {[%clk 0:02:57]} 7. Bd2 {[%clk 0:03:01]}  Qa4 {[%clk 0:02:57]} 8. Nf3 {[%clk 0:03:01]}  b6 {[%clk 0:02:56]} 9. h4 {[%clk 0:03:01]}  Ba6 {[%clk 0:02:53]} 10. Bxa6 {[%clk 0:03:01]}  Nxa6 {[%clk 0:02:49]} 11. h5 {[%clk 0:02:58]}  h6 {[%clk 0:02:49]} 12. Rh4 {[%clk 0:02:58]}  Ne7 {[%clk 0:02:48]} 13. dxc5 {[%clk 0:02:55]}  Qc6 {[%clk 0:02:46]} 14. cxb6 {[%clk 0:02:54]}  axb6 {[%clk 0:02:47]} 15. Nd4 {[%clk 0:02:47]}  Qd7 {[%clk 0:02:45]} 16. Rg4 {[%clk 0:02:45]}  g6 {[%clk 0:02:22]} 17. hxg6 {[%clk 0:02:43]}  Nxg6 {[%clk 0:02:23]} 18. Qe2 {[%clk 0:02:36]}  Nc5 {[%clk 0:02:19]} 19. f3 {[%clk 0:02:31]}  h5 {[%clk 0:02:12]} 20. Rg5 {[%clk 0:02:28]}  h4 {[%clk 0:02:11]} 21. Kf2 {[%clk 0:02:24]}  h3 {[%clk 0:01:52]} 22. gxh3 {[%clk 0:02:22]}  Rxh3 {[%clk 0:01:53]} 23. Rg3 {[%clk 0:02:22]}  Rh2+ {[%clk 0:01:29]} 24. Rg2 {[%clk 0:02:22]}  Rxg2+ {[%clk 0:01:29]} 25. Kxg2 {[%clk 0:02:22]}  Qe7 {[%clk 0:01:25]} 26. Qb5+ {[%clk 0:02:18]}  Kf8 {[%clk 0:01:23]} 27. Bh6+ {[%clk 0:02:18]}  Kg8 {[%clk 0:01:22]} 28. Rh1 {[%clk 0:02:16]}  Nxe5 {[%clk 0:01:08]} 29. Rh5 {[%clk 0:01:57]}  Ncd7 {[%clk 0:01:03]} 30. Qe2 {[%clk 0:01:41]}  Rxa3 {[%clk 0:00:54]} 31. Rxe5 {[%clk 0:01:38]}  Nxe5 {[%clk 0:00:51]} 32. Qxe5 {[%clk 0:01:39]}  f6 {[%clk 0:00:49]} 33. Qg3+ {[%clk 0:01:25]}  Kh7 {[%clk 0:00:47]} 34. Qh4 {[%clk 0:01:20]}  Kg6 {[%clk 0:00:38]} 35. Bd2 {[%clk 0:01:16]}  Ra8 {[%clk 0:00:14]} 36. Qg4+ {[%clk 0:01:12]}  Kf7 {[%clk 0:00:14]} 37. Qh5+ {[%clk 0:01:12]}  Kg8 {[%clk 0:00:12]} 38. Qg4+ {[%clk 0:01:08]}  Kf7 {[%clk 0:00:12]} 39. Qh5+ {[%clk 0:01:06]}  Kg8 {[%clk 0:00:12]} 40. Bh6 {[%clk 0:01:03]}  f5 {[%clk 0:00:08]} 41. Bg5 {[%clk 0:01:00]}  Qf7 {[%clk 0:00:06]} 42. Qh6 {[%clk 0:00:50]}  Re8 {[%clk 0:00:06]} 43. Bf6 {[%clk 0:00:48]}  Qh7 {[%clk 0:00:07]} 44. Qxh7+ {[%clk 0:00:38]}  Kxh7 {[%clk 0:00:08]} 45. f4 {[%clk 0:00:39]}  Kg6 {[%clk 0:00:08]} 46. Be5 {[%clk 0:00:38]}  Kf7 {[%clk 0:00:08]} 47. Kf3 {[%clk 0:00:38]}  Rh8 {[%clk 0:00:08]} 48. Ke3 {[%clk 0:00:38]}  Rh3+ {[%clk 0:00:08]} 49. Kd2 {[%clk 0:00:38]}  Rh2+ {[%clk 0:00:08]} 50. Kc1 {[%clk 0:00:39]}  Ke7 {[%clk 0:00:08]} 51. Kb2 {[%clk 0:00:39]}  Kd7 {[%clk 0:00:09]} 52. Kb3 {[%clk 0:00:40]}  Rg2 {[%clk 0:00:08]} 53. Kb4 {[%clk 0:00:41]}  Rg3 {[%clk 0:00:07]} 54. Kb3 {[%clk 0:00:36]}  Rg1 {[%clk 0:00:07]} 55. Ka3 {[%clk 0:00:34]}  Rb1 {[%clk 0:00:07]} 56. Nb3 {[%clk 0:00:33]}  Kc6 {[%clk 0:00:05]} 57. Ka2 {[%clk 0:00:31]}  Rf1 {[%clk 0:00:05]} 58. Kb2 {[%clk 0:00:30]}  Kd7 {[%clk 0:00:05]} 59. Ka3 {[%clk 0:00:31]}  Rf3 {[%clk 0:00:04]} 60. Kb4 {[%clk 0:00:31]}  Rf2 {[%clk 0:00:05]} 61. Nd4 {[%clk 0:00:30]}  Rf1 {[%clk 0:00:05]} 62. Kb5 {[%clk 0:00:28]}  Rb1+ {[%clk 0:00:06]} 63. Nb3 {[%clk 0:00:29]}  Rb2 {[%clk 0:00:05]} 64. Kxb6 {[%clk 0:00:28]}  Rxc2 {[%clk 0:00:06]} 65. Nc5+ {[%clk 0:00:27]}  Ke7 {[%clk 0:00:06]} 66. Kc6 {[%clk 0:00:26]}  Rh2 {[%clk 0:00:05]} 67. Bd6+ {[%clk 0:00:26]}  Kf6 {[%clk 0:00:05]} 68. Nd7+ {[%clk 0:00:24]}  Kf7 {[%clk 0:00:04]} 69. Ne5+ {[%clk 0:00:23]}  Kf6 {[%clk 0:00:05]} 70. Bc7 {[%clk 0:00:21]}  Rc2 {[%clk 0:00:04]} 71. Bd8+ {[%clk 0:00:21]}  Kg7 {[%clk 0:00:03]} 72. Ba5 {[%clk 0:00:20]}  d4 {[%clk 0:00:03]} 73. Kc5 {[%clk 0:00:18]}  dxc3 {[%clk 0:00:03]} 74. Kc4 {[%clk 0:00:18]}  Rf2 {[%clk 0:00:03]} 75. Bxc3 {[%clk 0:00:19]}  Rxf4+ {[%clk 0:00:03]} 76. Kc5 {[%clk 0:00:18]}  Re4 {[%clk 0:00:03]} 77. Kd6 {[%clk 0:00:18]}  Kh6 {[%clk 0:00:00]} 78. Kxe6 {[%clk 0:00:17]} 1-0

[Event "January 9 Late 2024"]
[Site "https://www.chess.com"]
[Date "2024.01.09"]
[Round "3"]
[White "Silva Lucena, Cristian"]
[Black "Garakov, Mikhael"]
[Result "1-0"]
[Board "110"]
[TimeControl "180+1"]
[WhiteFideId "2232588"]
[BlackFideId "4169034"]
[WhiteElo "2473"]
[BlackElo "2646"]
[WhiteTeam "ESP"]
[BlackTeam "RUS"]
[WhiteClock "0:00:53"]
[BlackClock "0:00:20"]

1. Nf3 {[%clk 0:03:00]}  c5 {[%clk 0:02:58]} 2. e4 {[%clk 0:02:57]}  e6 {[%clk 0:02:57]} 3. d4 {[%clk 0:02:58]}  cxd4 {[%clk 0:02:57]} 4. Nxd4 {[%clk 0:02:59]}  Nc6 {[%clk 0:02:57]} 5. Nc3 {[%clk 0:02:59]}  Qc7 {[%clk 0:02:57]} 6. Qd3 {[%clk 0:03:00]}  a6 {[%clk 0:02:54]} 7. Nxc6 {[%clk 0:02:59]}  bxc6 {[%clk 0:02:54]} 8. Qg3 {[%clk 0:03:00]}  e5 {[%clk 0:02:50]} 9. Bc4 {[%clk 0:02:52]}  Ne7 {[%clk 0:02:45]} 10. O-O {[%clk 0:02:48]}  Ng6 {[%clk 0:02:44]} 11. h4 {[%clk 0:02:48]}  h5 {[%clk 0:02:30]} 12. Bg5 {[%clk 0:02:46]}  Nf4 {[%clk 0:02:21]} 13. Rad1 {[%clk 0:02:29]}  Bc5 {[%clk 0:02:10]} 14. Bxf4 {[%clk 0:02:22]}  exf4 {[%clk 0:02:08]} 15. Qxg7 {[%clk 0:02:23]}  Rf8 {[%clk 0:02:06]} 16. e5 {[%clk 0:02:15]}  Be7 {[%clk 0:01:47]} 17. Ne4 {[%clk 0:02:13]}  Qb6 {[%clk 0:01:33]} 18. Nd6+ {[%clk 0:02:07]}  Kd8 {[%clk 0:01:30]} 19. Nxf7+ {[%clk 0:02:00]}  Kc7 {[%clk 0:01:31]} 20. Nd6 {[%clk 0:01:58]}  Kd8 {[%clk 0:01:29]} 21. e6 {[%clk 0:01:53]}  Qc7 {[%clk 0:01:11]} 22. Nxc8 {[%clk 0:01:51]}  d5 {[%clk 0:01:11]} 23. Nxe7 {[%clk 0:01:46]}  Qxe7 {[%clk 0:01:11]} 24. Qxe7+ {[%clk 0:01:41]}  Kxe7 {[%clk 0:01:12]} 25. Be2 {[%clk 0:01:41]}  Rf6 {[%clk 0:01:09]} 26. Bf3 {[%clk 0:01:37]}  a5 {[%clk 0:01:07]} 27. Rfe1 {[%clk 0:01:35]}  a4 {[%clk 0:01:06]} 28. Re5 {[%clk 0:01:35]}  a3 {[%clk 0:01:04]} 29. b3 {[%clk 0:01:32]}  Rg8 {[%clk 0:01:02]} 30. Rxh5 {[%clk 0:01:31]}  Rxe6 {[%clk 0:01:03]} 31. Rh7+ {[%clk 0:01:22]}  Kd6 {[%clk 0:01:03]} 32. Ra7 {[%clk 0:01:21]}  Rh8 {[%clk 0:01:01]} 33. h5 {[%clk 0:01:21]}  Kc5 {[%clk 0:00:53]} 34. Rxa3 {[%clk 0:01:21]}  Kb4 {[%clk 0:00:54]} 35. Ra6 {[%clk 0:01:18]}  Rhh6 {[%clk 0:00:51]} 36. c4 {[%clk 0:01:05]}  dxc4 {[%clk 0:00:46]} 37. bxc4 {[%clk 0:01:06]}  Kc3 {[%clk 0:00:44]} 38. c5 {[%clk 0:01:04]}  Kc2 {[%clk 0:00:44]} 39. Rd6 {[%clk 0:01:02]}  Re1+ {[%clk 0:00:43]} 40. Kh2 {[%clk 0:01:03]}  Rh8 {[%clk 0:00:41]} 41. Raxc6 {[%clk 0:01:00]}  Rb8 {[%clk 0:00:40]} 42. Re6 {[%clk 0:00:58]}  Rf1 {[%clk 0:00:39]} 43. Re2+ {[%clk 0:00:57]}  Kc3 {[%clk 0:00:40]} 44. Kh3 {[%clk 0:00:55]}  Rh1+ {[%clk 0:00:39]} 45. Kg4 {[%clk 0:00:56]}  Rg8+ {[%clk 0:00:34]} 46. Rg6 {[%clk 0:00:56]}  Rf8 {[%clk 0:00:33]} 47. c6 {[%clk 0:00:54]}  Rb1 {[%clk 0:00:29]} 48. Re4 {[%clk 0:00:53]}  Rb2 {[%clk 0:00:20]} 49. Rxf4 {[%clk 0:00:53]} 1-0

[Event "January 9 Late 2024"]
[Site "https://www.chess.com"]
[Date "2024.01.09"]
[Round "3"]
[White "Fiedorek, Michal"]
[Black "Principe, Gerson"]
[Result "0-1"]
[Board "111"]
[TimeControl "180+1"]
[WhiteFideId "1199528"]
[BlackFideId "3804550"]
[WhiteElo "2472"]
[BlackElo "2644"]
[WhiteTeam "POL"]
[BlackTeam "PER"]
[WhiteClock "0:00:14"]
[BlackClock "0:00:04"]

1. e4 {[%clk 0:03:00]}  c6 {[%clk 0:03:00]} 2. d4 {[%clk 0:02:59]}  d5 {[%clk 0:03:01]} 3. f3 {[%clk 0:03:00]}  e6 {[%clk 0:02:55]} 4. Nc3 {[%clk 0:02:58]}  Nf6 {[%clk 0:02:49]} 5. e5 {[%clk 0:02:54]}  Nfd7 {[%clk 0:02:49]} 6. f4 {[%clk 0:02:54]}  c5 {[%clk 0:02:49]} 7. Nf3 {[%clk 0:02:54]}  Nc6 {[%clk 0:02:50]} 8. Be3 {[%clk 0:02:54]}  Be7 {[%clk 0:02:44]} 9. Be2 {[%clk 0:02:52]}  a6 {[%clk 0:02:42]} 10. O-O {[%clk 0:02:52]}  b5 {[%clk 0:02:43]} 11. Qd2 {[%clk 0:02:48]}  Qb6 {[%clk 0:02:40]} 12. f5 {[%clk 0:02:47]}  cxd4 {[%clk 0:02:36]} 13. Nxd4 {[%clk 0:02:39]}  Nxd4 {[%clk 0:02:35]} 14. Bxd4 {[%clk 0:02:38]}  Bc5 {[%clk 0:02:35]} 15. Bxc5 {[%clk 0:02:38]}  Qxc5+ {[%clk 0:02:34]} 16. Kh1 {[%clk 0:02:38]}  Nxe5 {[%clk 0:02:08]} 17. Qg5 {[%clk 0:02:36]}  O-O {[%clk 0:01:59]} 18. fxe6 {[%clk 0:02:30]}  f6 {[%clk 0:01:59]} 19. Qf5 {[%clk 0:02:22]}  Re8 {[%clk 0:01:44]} 20. Bd3 {[%clk 0:02:17]}  Nxd3 {[%clk 0:01:40]} 21. Qxd3 {[%clk 0:02:17]}  Bxe6 {[%clk 0:01:40]} 22. Rad1 {[%clk 0:02:12]}  Rad8 {[%clk 0:01:39]} 23. Rf4 {[%clk 0:02:12]}  Bf7 {[%clk 0:01:22]} 24. Rd4 {[%clk 0:02:10]}  Re5 {[%clk 0:01:22]} 25. h3 {[%clk 0:02:09]}  Qc6 {[%clk 0:00:52]} 26. a3 {[%clk 0:01:54]}  Qe6 {[%clk 0:00:50]} 27. Qd2 {[%clk 0:01:46]}  Bh5 {[%clk 0:00:47]} 28. Rf1 {[%clk 0:01:42]}  Bg6 {[%clk 0:00:33]} 29. a4 {[%clk 0:01:41]}  bxa4 {[%clk 0:00:32]} 30. Rxa4 {[%clk 0:01:41]}  Be4 {[%clk 0:00:26]} 31. Kh2 {[%clk 0:01:36]}  d4 {[%clk 0:00:22]} 32. Rxd4 {[%clk 0:01:27]}  Re8 {[%clk 0:00:17]} 33. Rd6 {[%clk 0:01:23]}  Qc4 {[%clk 0:00:13]} 34. Rf2 {[%clk 0:01:16]}  Bg6 {[%clk 0:00:10]} 35. Rd7 {[%clk 0:01:12]}  Qc5 {[%clk 0:00:07]} 36. Rf4 {[%clk 0:00:57]}  h6 {[%clk 0:00:06]} 37. Rfd4 {[%clk 0:00:57]}  Re3 {[%clk 0:00:03]} 38. R4d6 {[%clk 0:00:50]}  Qe5+ {[%clk 0:00:03]} 39. Kg1 {[%clk 0:00:45]}  Qg3 {[%clk 0:00:03]} 40. Qd5+ {[%clk 0:00:17]}  Kh7 {[%clk 0:00:03]} 41. Rxg7+ {[%clk 0:00:16]}  Kxg7 {[%clk 0:00:04]} 42. Rd7+ {[%clk 0:00:14]}  Kh8 {[%clk 0:00:04]} 0-1

[Event "January 9 Late 2024"]
[Site "https://www.chess.com"]
[Date "2024.01.09"]
[Round "3"]
[White "Sivakumar, Shaaketh"]
[Black "Shohat, Yotam"]
[Result "0-1"]
[Board "114"]
[TimeControl "180+1"]
[WhiteFideId "30940176"]
[BlackFideId "2813955"]
[WhiteElo "2641"]
[BlackElo "2471"]
[WhiteTeam "USA"]
[BlackTeam "ISR"]
[WhiteClock "0:00:08"]
[BlackClock "0:00:06"]

1. e4 {[%clk 0:03:00]}  e5 {[%clk 0:02:59]} 2. Nf3 {[%clk 0:02:57]}  Nc6 {[%clk 0:03:00]} 3. Bb5 {[%clk 0:02:51]}  a6 {[%clk 0:03:00]} 4. Ba4 {[%clk 0:02:51]}  Nf6 {[%clk 0:03:01]} 5. O-O {[%clk 0:02:50]}  Nxe4 {[%clk 0:03:01]} 6. Re1 {[%clk 0:02:51]}  Nc5 {[%clk 0:03:01]} 7. Nxe5 {[%clk 0:02:50]}  Be7 {[%clk 0:02:59]} 8. Bxc6 {[%clk 0:02:27]}  dxc6 {[%clk 0:02:59]} 9. d4 {[%clk 0:02:22]}  Ne6 {[%clk 0:03:00]} 10. c3 {[%clk 0:02:23]}  O-O {[%clk 0:03:00]} 11. Nd2 {[%clk 0:02:21]}  c5 {[%clk 0:03:01]} 12. Ndf3 {[%clk 0:02:19]}  cxd4 {[%clk 0:03:01]} 13. cxd4 {[%clk 0:02:20]}  Re8 {[%clk 0:02:43]} 14. Be3 {[%clk 0:02:17]}  f6 {[%clk 0:02:36]} 15. Nd3 {[%clk 0:02:14]}  Kh8 {[%clk 0:02:34]} 16. Qb3 {[%clk 0:02:14]}  b6 {[%clk 0:02:26]} 17. d5 {[%clk 0:02:14]}  Nf8 {[%clk 0:02:24]} 18. Rad1 {[%clk 0:02:14]}  Bb7 {[%clk 0:02:24]} 19. Nf4 {[%clk 0:02:14]}  Bd6 {[%clk 0:02:23]} 20. Nd4 {[%clk 0:02:12]}  Qd7 {[%clk 0:02:21]} 21. Nde6 {[%clk 0:02:12]}  Re7 {[%clk 0:02:17]} 22. Bc1 {[%clk 0:02:08]}  Rae8 {[%clk 0:02:10]} 23. Qh3 {[%clk 0:02:07]}  Bxf4 {[%clk 0:02:08]} 24. Bxf4 {[%clk 0:02:06]}  Nxe6 {[%clk 0:01:51]} 25. dxe6 {[%clk 0:02:06]}  Rxe6 {[%clk 0:01:47]} 26. Be3 {[%clk 0:01:49]}  Qc6 {[%clk 0:01:35]} 27. Rc1 {[%clk 0:01:48]}  Qd6 {[%clk 0:01:33]} 28. Red1 {[%clk 0:01:44]}  Qe7 {[%clk 0:01:34]} 29. Qg3 {[%clk 0:01:39]}  c5 {[%clk 0:01:34]} 30. b4 {[%clk 0:01:36]}  Rc8 {[%clk 0:01:24]} 31. bxc5 {[%clk 0:01:34]}  bxc5 {[%clk 0:01:20]} 32. Bxc5 {[%clk 0:01:14]}  Rxc5 {[%clk 0:01:10]} 33. Qb8+ {[%clk 0:01:12]}  Bc8 {[%clk 0:00:51]} 34. Qxc8+ {[%clk 0:00:58]}  Rxc8 {[%clk 0:00:52]} 35. Rxc8+ {[%clk 0:00:58]}  Qe8 {[%clk 0:00:52]} 36. Rxe8+ {[%clk 0:00:55]}  Rxe8 {[%clk 0:00:53]} 37. g3 {[%clk 0:00:56]}  Kg8 {[%clk 0:00:52]} 38. Rd6 {[%clk 0:00:56]}  a5 {[%clk 0:00:47]} 39. Rd5 {[%clk 0:00:49]}  a4 {[%clk 0:00:38]} 40. Rd7 {[%clk 0:00:50]}  Re2 {[%clk 0:00:34]} 41. a3 {[%clk 0:00:48]}  Ra2 {[%clk 0:00:31]} 42. Rd3 {[%clk 0:00:49]}  Kf7 {[%clk 0:00:27]} 43. Kg2 {[%clk 0:00:48]}  Ke6 {[%clk 0:00:27]} 44. Kf3 {[%clk 0:00:49]}  Ke5 {[%clk 0:00:27]} 45. h4 {[%clk 0:00:50]}  h5 {[%clk 0:00:26]} 46. Ke3 {[%clk 0:00:49]}  g5 {[%clk 0:00:26]} 47. Rc3 {[%clk 0:00:45]}  Kd5 {[%clk 0:00:26]} 48. Rd3+ {[%clk 0:00:39]}  Ke5 {[%clk 0:00:26]} 49. Rc3 {[%clk 0:00:40]}  Kd5 {[%clk 0:00:26]} 50. Kf3 {[%clk 0:00:33]}  Kd4 {[%clk 0:00:24]} 51. Re3 {[%clk 0:00:32]}  g4+ {[%clk 0:00:19]} 52. Kg2 {[%clk 0:00:32]}  Rb2 {[%clk 0:00:17]} 53. Re6 {[%clk 0:00:29]}  Rb3 {[%clk 0:00:16]} 54. Rxf6 {[%clk 0:00:28]}  Rxa3 {[%clk 0:00:17]} 55. Rf5 {[%clk 0:00:27]}  Rc3 {[%clk 0:00:14]} 56. Rxh5 {[%clk 0:00:27]}  Rc5 {[%clk 0:00:13]} 57. Rh8 {[%clk 0:00:19]}  Kc3 {[%clk 0:00:13]} 58. Ra8 {[%clk 0:00:18]}  Kb3 {[%clk 0:00:12]} 59. f3 {[%clk 0:00:17]}  Rc2+ {[%clk 0:00:11]} 60. Kf1 {[%clk 0:00:17]}  gxf3 {[%clk 0:00:12]} 61. h5 {[%clk 0:00:17]}  a3 {[%clk 0:00:09]} 62. h6 {[%clk 0:00:16]}  Rh2 {[%clk 0:00:10]} 63. Rb8+ {[%clk 0:00:15]}  Kc3 {[%clk 0:00:10]} 64. Rc8+ {[%clk 0:00:15]}  Kb2 {[%clk 0:00:11]} 65. Rb8+ {[%clk 0:00:15]}  Kc2 {[%clk 0:00:11]} 66. Rc8+ {[%clk 0:00:16]}  Kb2 {[%clk 0:00:11]} 67. Rb8+ {[%clk 0:00:16]}  Kc3 {[%clk 0:00:11]} 68. Rb6 {[%clk 0:00:16]}  a2 {[%clk 0:00:11]} 69. Ra6 {[%clk 0:00:16]}  a1=Q+ {[%clk 0:00:10]} 70. Rxa1 {[%clk 0:00:16]}  Rh1+ {[%clk 0:00:10]} 71. Kf2 {[%clk 0:00:15]}  Rxa1 {[%clk 0:00:11]} 72. g4 {[%clk 0:00:15]}  Kd4 {[%clk 0:00:11]} 73. g5 {[%clk 0:00:13]}  Ke5 {[%clk 0:00:07]} 74. Kxf3 {[%clk 0:00:09]}  Kf5 {[%clk 0:00:06]} 75. h7 {[%clk 0:00:10]}  Rh1 {[%clk 0:00:06]} 76. g6 {[%clk 0:00:09]}  Kxg6 {[%clk 0:00:07]} 77. Kg2 {[%clk 0:00:08]}  Rxh7 {[%clk 0:00:06]} 0-1

[Event "January 9 Late 2024"]
[Site "https://www.chess.com"]
[Date "2024.01.09"]
[Round "3"]
[White "Spichkin, Alexander"]
[Black "Lizak, Peter"]
[Result "0-1"]
[Board "115"]
[TimeControl "180+1"]
[WhiteFideId "4144074"]
[BlackFideId "731595"]
[WhiteElo "2470"]
[BlackElo "2638"]
[WhiteTeam "RUS"]
[BlackTeam "HUN"]
[WhiteClock "0:01:02"]
[BlackClock "0:00:15"]

1. f4 {[%clk 0:02:53]}  d5 {[%clk 0:02:59]} 2. Nf3 {[%clk 0:02:51]}  Nc6 {[%clk 0:03:00]} 3. e3 {[%clk 0:02:51]}  Bg4 {[%clk 0:02:59]} 4. Bb5 {[%clk 0:02:52]}  Qd6 {[%clk 0:02:56]} 5. b3 {[%clk 0:02:50]}  a6 {[%clk 0:02:50]} 6. Ba3 {[%clk 0:02:49]}  Qh6 {[%clk 0:02:43]} 7. Be2 {[%clk 0:02:45]}  Nf6 {[%clk 0:02:33]} 8. O-O {[%clk 0:02:43]}  Bxf3 {[%clk 0:02:15]} 9. Bxf3 {[%clk 0:02:41]}  e5 {[%clk 0:02:15]} 10. Bxf8 {[%clk 0:02:38]}  Rxf8 {[%clk 0:02:16]} 11. fxe5 {[%clk 0:02:38]}  Nxe5 {[%clk 0:02:16]} 12. Nc3 {[%clk 0:02:38]}  O-O-O {[%clk 0:02:15]} 13. b4 {[%clk 0:02:34]}  Qh4 {[%clk 0:02:00]} 14. b5 {[%clk 0:02:32]}  a5 {[%clk 0:01:41]} 15. b6 {[%clk 0:02:30]}  c6 {[%clk 0:01:41]} 16. Rb1 {[%clk 0:02:19]}  h5 {[%clk 0:01:39]} 17. Ne2 {[%clk 0:02:13]}  Nxf3+ {[%clk 0:01:25]} 18. Rxf3 {[%clk 0:02:13]}  Ng4 {[%clk 0:01:26]} 19. h3 {[%clk 0:02:11]}  Ne5 {[%clk 0:01:24]} 20. Rf4 {[%clk 0:02:09]}  Qe7 {[%clk 0:01:18]} 21. Nd4 {[%clk 0:02:07]}  g6 {[%clk 0:01:19]} 22. Qc1 {[%clk 0:02:03]}  Nc4 {[%clk 0:01:16]} 23. Rf3 {[%clk 0:01:55]}  f5 {[%clk 0:01:08]} 24. d3 {[%clk 0:01:55]}  Ne5 {[%clk 0:00:53]} 25. Rg3 {[%clk 0:01:55]}  h4 {[%clk 0:00:47]} 26. Rf3 {[%clk 0:01:51]}  Nxf3+ {[%clk 0:00:46]} 27. Nxf3 {[%clk 0:01:52]}  Rde8 {[%clk 0:00:39]} 28. Kf2 {[%clk 0:01:49]}  g5 {[%clk 0:00:39]} 29. Qd2 {[%clk 0:01:49]}  g4 {[%clk 0:00:39]} 30. Nd4 {[%clk 0:01:23]}  gxh3 {[%clk 0:00:32]} 31. Re1 {[%clk 0:01:15]}  Qg5 {[%clk 0:00:25]} 32. Rg1 {[%clk 0:01:12]}  Qg3+ {[%clk 0:00:20]} 33. Ke2 {[%clk 0:01:12]}  h2 {[%clk 0:00:18]} 34. Nf3 {[%clk 0:01:05]}  hxg1=Q {[%clk 0:00:16]} 35. Qxa5 {[%clk 0:01:02]}  Q3f2# {[%clk 0:00:15]} 0-1

[Event "January 9 Late 2024"]
[Site "https://www.chess.com"]
[Date "2024.01.09"]
[Round "3"]
[White "Goryachkina, Aleksandra"]
[Black "Bochnicka, Vladimir"]
[Result "1-0"]
[Board "118"]
[TimeControl "180+1"]
[WhiteFideId "4147103"]
[BlackFideId "14943450"]
[WhiteElo "2631"]
[BlackElo "2466"]
[WhiteTeam "FID"]
[BlackTeam "SVK"]
[WhiteClock "0:01:11"]
[BlackClock "0:00:27"]

1. e4 {[%clk 0:02:59]}  c5 {[%clk 0:02:59]} 2. Nf3 {[%clk 0:02:59]}  Nc6 {[%clk 0:02:59]} 3. Bb5 {[%clk 0:02:59]}  e6 {[%clk 0:02:59]} 4. Bxc6 {[%clk 0:02:59]}  bxc6 {[%clk 0:03:00]} 5. d3 {[%clk 0:03:00]}  Ne7 {[%clk 0:03:00]} 6. Qe2 {[%clk 0:02:59]}  Ng6 {[%clk 0:03:00]} 7. h4 {[%clk 0:02:59]}  Be7 {[%clk 0:02:55]} 8. h5 {[%clk 0:02:56]}  Nf8 {[%clk 0:02:55]} 9. h6 {[%clk 0:02:55]}  g6 {[%clk 0:02:54]} 10. e5 {[%clk 0:02:54]}  f6 {[%clk 0:02:51]} 11. Nc3 {[%clk 0:02:48]}  Qc7 {[%clk 0:02:24]} 12. exf6 {[%clk 0:02:39]}  Bxf6 {[%clk 0:02:22]} 13. Ne4 {[%clk 0:02:38]}  Be7 {[%clk 0:02:22]} 14. Bg5 {[%clk 0:02:36]}  d5 {[%clk 0:02:20]} 15. Bxe7 {[%clk 0:02:21]}  Qxe7 {[%clk 0:02:20]} 16. Ned2 {[%clk 0:02:17]}  Nd7 {[%clk 0:02:08]} 17. O-O-O {[%clk 0:02:11]}  O-O {[%clk 0:02:00]} 18. Rde1 {[%clk 0:02:10]}  Nf6 {[%clk 0:01:53]} 19. Ng5 {[%clk 0:01:57]}  Re8 {[%clk 0:01:26]} 20. f4 {[%clk 0:01:56]}  Qc7 {[%clk 0:01:25]} 21. Rhf1 {[%clk 0:01:47]}  Bd7 {[%clk 0:01:19]} 22. Qe5 {[%clk 0:01:26]}  Qxe5 {[%clk 0:01:06]} 23. fxe5 {[%clk 0:01:26]}  Nh5 {[%clk 0:00:41]} 24. g4 {[%clk 0:01:15]}  Ng3 {[%clk 0:00:34]} 25. Rf7 {[%clk 0:01:11]}  Rad8 {[%clk 0:00:26]} 26. Rg7+ {[%clk 0:01:11]}  Kh8 {[%clk 0:00:27]} 27. Nf7# {[%clk 0:01:11]} 1-0

[Event "January 9 Late 2024"]
[Site "https://www.chess.com"]
[Date "2024.01.09"]
[Round "3"]
[White "Xhembulla, Aleksander"]
[Black "Ezat, Mohamed"]
[Result "1-0"]
[Board "119"]
[TimeControl "180+1"]
[WhiteFideId "4705114"]
[BlackFideId "10600906"]
[WhiteElo "2631"]
[BlackElo "2459"]
[WhiteTeam "ALB"]
[BlackTeam "EGY"]
[WhiteClock "0:01:59"]
[BlackClock "0:00:54"]

1. e4 {[%clk 0:03:00]}  e5 {[%clk 0:02:48]} 2. Nf3 {[%clk 0:02:58]}  Nc6 {[%clk 0:02:47]} 3. Bc4 {[%clk 0:02:57]}  Nf6 {[%clk 0:02:47]} 4. d3 {[%clk 0:02:57]}  h6 {[%clk 0:02:45]} 5. c3 {[%clk 0:02:53]}  d6 {[%clk 0:02:39]} 6. Nbd2 {[%clk 0:02:47]}  g5 {[%clk 0:02:38]} 7. Nf1 {[%clk 0:02:38]}  Bg7 {[%clk 0:02:31]} 8. Ne3 {[%clk 0:02:37]}  Ne7 {[%clk 0:02:17]} 9. O-O {[%clk 0:02:34]}  Ng6 {[%clk 0:02:16]} 10. Re1 {[%clk 0:02:33]}  g4 {[%clk 0:02:11]} 11. Nd2 {[%clk 0:02:31]}  h5 {[%clk 0:02:10]} 12. Nf5 {[%clk 0:02:31]}  Bxf5 {[%clk 0:02:01]} 13. exf5 {[%clk 0:02:32]}  Ne7 {[%clk 0:02:01]} 14. d4 {[%clk 0:02:32]}  exd4 {[%clk 0:02:00]} 15. cxd4 {[%clk 0:02:31]}  O-O {[%clk 0:01:59]} 16. Bd3 {[%clk 0:02:31]}  Nc6 {[%clk 0:01:54]} 17. Ne4 {[%clk 0:02:25]}  Nxd4 {[%clk 0:01:43]} 18. Bg5 {[%clk 0:02:24]}  Nxf5 {[%clk 0:01:43]} 19. Qc1 {[%clk 0:02:10]}  Nd4 {[%clk 0:01:26]} 20. Bxf6 {[%clk 0:02:01]}  Bxf6 {[%clk 0:01:25]} 21. Qh6 {[%clk 0:01:59]}  Bg7 {[%clk 0:00:54]} 22. Nf6+ {[%clk 0:01:59]} 1-0